[Event "*** Titled Tuesday Blitz"]
[Site "Chess.com"]
[Date "2020.05.05"]
[Round "6"]
[White "StockholmMissile"]
[Black "davidkalashian"]
[Result "0-1"]
[WhiteElo "2405"]
[BlackElo "2541"]
[TimeControl "180+1"]
[EndTime "11:08:57 PDT"]
[Termination "davidkalashian won by resignation"]

1. d4 {[%clk 0:03:00.9]} 1... Nf6 {[%clk 0:02:59.2]} 2. c4 {[%clk 0:03:00.9]}
2... g6 {[%clk 0:02:59.6]} 3. Nc3 {[%clk 0:03:00.6]} 3... Bg7 {[%clk 0:03:00.1]}
4. e4 {[%clk 0:03:00.6]} 4... d6 {[%clk 0:03:00.7]} 5. h3 {[%clk 0:03:00.8]}
5... O-O {[%clk 0:02:59.4]} 6. Be3 {[%clk 0:03:00.7]} 6... e5 {[%clk 0:02:58.3]}
7. d5 {[%clk 0:02:59.7]} 7... Nh5 {[%clk 0:02:54.8]} 8. g3 {[%clk 0:02:49.3]}
8... c5 {[%clk 0:02:49.8]} 9. Be2 {[%clk 0:02:46.2]} 9... Nf6 {[%clk 0:02:49.6]}
10. g4 {[%clk 0:02:43]} 10... Ne8 {[%clk 0:02:47.5]} 11. Bd3 {[%clk 0:02:42]}
11... a6 {[%clk 0:02:41.6]} 12. Nge2 {[%clk 0:02:38.6]} 12... b5 {[%clk
0:02:31.6]} 13. cxb5 {[%clk 0:02:38.8]} 13... axb5 {[%clk 0:02:32.2]} 14. Nxb5
{[%clk 0:02:38.9]} 14... Ba6 {[%clk 0:02:31.2]} 15. Nbc3 {[%clk 0:02:38.1]}
15... Bxd3 {[%clk 0:02:30.1]} 16. Qxd3 {[%clk 0:02:38.1]} 16... Na6 {[%clk
0:02:30.9]} 17. Ng3 {[%clk 0:02:34.6]} 17... Nb4 {[%clk 0:02:30]} 18. Qd2 {[%clk
0:02:34.2]} 18... c4 {[%clk 0:02:28.2]} 19. O-O {[%clk 0:02:33.2]} 19... Rb8
{[%clk 0:02:21.7]} 20. Rab1 {[%clk 0:02:24]} 20... Nd3 {[%clk 0:02:13.7]} 21. b3
{[%clk 0:02:16.3]} 21... Nf4 {[%clk 0:02:12.9]} 22. bxc4 {[%clk 0:02:12.1]}
22... Rxb1 {[%clk 0:02:05.3]} 23. Nxb1 {[%clk 0:02:11.4]} 23... Nxh3+ {[%clk
0:02:04.9]} 24. Kg2 {[%clk 0:02:11.1]} 24... Nf4+ {[%clk 0:02:05.2]} 25. Bxf4
{[%clk 0:02:11]} 25... exf4 {[%clk 0:02:05.5]} 26. Qxf4 {[%clk 0:02:11.9]} 26...
Be5 {[%clk 0:01:41.4]} 27. Qe3 {[%clk 0:02:06]} 27... Qh4 {[%clk 0:01:39]} 28.
Qf3 {[%clk 0:02:05.9]} 28... Nf6 {[%clk 0:01:36.9]} 29. Rh1 {[%clk 0:02:03.1]}
29... Qxg4 {[%clk 0:01:36.3]} 30. Qxg4 {[%clk 0:02:03]} 30... Nxg4 {[%clk
0:01:37.2]} 31. Nd2 {[%clk 0:02:01.2]} 31... Ra8 {[%clk 0:01:35.9]} 32. Kf3
{[%clk 0:01:27.4]} 32... Rxa2 {[%clk 0:01:31.1]} 33. Rd1 {[%clk 0:01:19.6]}
33... h5 {[%clk 0:01:27.6]} 34. Ne2 {[%clk 0:01:15.7]} 34... Rc2 {[%clk
0:01:15.2]} 35. Nc1 {[%clk 0:01:03.7]} 35... Bd4 {[%clk 0:01:04.5]} 36. Nd3
{[%clk 0:00:55.9]} 36... Bc3 {[%clk 0:00:49.1]} 37. Nb3 {[%clk 0:00:39.9]} 37...
Bf6 {[%clk 0:00:48.8]} 38. c5 {[%clk 0:00:37.4]} 38... dxc5 {[%clk 0:00:47.4]}
39. Nbxc5 {[%clk 0:00:36.8]} 39... Nxf2 {[%clk 0:00:46.1]} 40. Rc1 {[%clk
0:00:26]} 40... Rxc1 {[%clk 0:00:41.5]} 41. Nxc1 {[%clk 0:00:26.9]} 41... Ng4
{[%clk 0:00:41.5]} 42. N1d3 {[%clk 0:00:26.8]} 42... Kf8 {[%clk 0:00:37.9]} 43.
Kf4 {[%clk 0:00:23.9]} 43... g5+ {[%clk 0:00:34.1]} 44. Kf5 {[%clk 0:00:20.4]}
44... Kg7 {[%clk 0:00:26.6]} 45. e5 {[%clk 0:00:20.3]} 45... Nh6+ {[%clk
0:00:26.8]} 46. Ke4 {[%clk 0:00:20.1]} 46... Bd8 {[%clk 0:00:27.3]} 47. d6
{[%clk 0:00:20]} 47... h4 {[%clk 0:00:24.4]} 48. Nb7 {[%clk 0:00:19.5]} 48...
Bb6 {[%clk 0:00:23]} 49. d7 {[%clk 0:00:17.4]} 49... h3 {[%clk 0:00:16.3]} 50.
Nf2 {[%clk 0:00:16.4]} 50... h2 {[%clk 0:00:14.3]} 51. Kf3 {[%clk 0:00:12.7]}
51... Bxf2 {[%clk 0:00:12.2]} 52. d8=Q {[%clk 0:00:11.1]} 52... h1=Q+ {[%clk
0:00:11.5]} 53. Kxf2 {[%clk 0:00:11.5]} 53... Ng4+ {[%clk 0:00:10.7]} 54. Kg3
{[%clk 0:00:09.2]} 54... Qg1+ {[%clk 0:00:10.9]} 55. Kf3 {[%clk 0:00:09]} 55...
Nxe5+ {[%clk 0:00:11.2]} 56. Ke4 {[%clk 0:00:08.8]} 56... Qe1+ {[%clk
0:00:10.8]} 57. Kf5 {[%clk 0:00:06.9]} 57... Ng6 {[%clk 0:00:11]} 58. Qf6+
{[%clk 0:00:06.3]} 58... Kh6 {[%clk 0:00:08.7]} 59. Qxg5+ {[%clk 0:00:05.7]}
59... Kh7 {[%clk 0:00:09.2]} 60. Qh5+ {[%clk 0:00:05]} 60... Kg7 {[%clk
0:00:09.5]} 61. Nd6 {[%clk 0:00:04.6]} 61... Qe5+ {[%clk 0:00:08.2]} 62. Kg4
{[%clk 0:00:05]} 62... Qxd6 {[%clk 0:00:07.9]} 63. Qf5 {[%clk 0:00:05.1]} 63...
Qd4+ {[%clk 0:00:07.4]} 64. Kg3 {[%clk 0:00:04.8]} 64... Qe5+ {[%clk 0:00:07.2]}
65. Qxe5+ {[%clk 0:00:04.6]} 65... Nxe5 {[%clk 0:00:08.1]} 0-1

[Event "*** Titled Tuesday Blitz"]
[Site "Chess.com"]
[Date "2020.05.05"]
[Round "6"]
[White "Micki-taryan"]
[Black "GigaQuparadze"]
[Result "1/2-1/2"]
[WhiteElo "3069"]
[BlackElo "2832"]
[TimeControl "180+1"]
[EndTime "11:09:02 PDT"]
[Termination "Game drawn by repetition"]

1. d4 {[%clk 0:03:00.9]} 1... Nf6 {[%clk 0:02:59.3]} 2. Nf3 {[%clk 0:03:00.9]}
2... e6 {[%clk 0:02:59.1]} 3. c4 {[%clk 0:03:00.8]} 3... b6 {[%clk 0:02:58.5]}
4. Nc3 {[%clk 0:03:01]} 4... Bb4 {[%clk 0:02:56.8]} 5. Bg5 {[%clk 0:03:01.5]}
5... Bb7 {[%clk 0:02:56.2]} 6. e3 {[%clk 0:03:01.2]} 6... h6 {[%clk 0:02:55.9]}
7. Bh4 {[%clk 0:03:01.7]} 7... g5 {[%clk 0:02:54.3]} 8. Bg3 {[%clk 0:03:02.2]}
8... Ne4 {[%clk 0:02:54.4]} 9. Nd2 {[%clk 0:03:02.4]} 9... Bxc3 {[%clk
0:02:47.9]} 10. bxc3 {[%clk 0:03:03.3]} 10... Nxg3 {[%clk 0:02:48]} 11. hxg3
{[%clk 0:03:04.2]} 11... d6 {[%clk 0:02:48.3]} 12. Rh2 {[%clk 0:03:04.4]} 12...
Nd7 {[%clk 0:02:47.7]} 13. Be2 {[%clk 0:03:05]} 13... Nf6 {[%clk 0:02:47.2]} 14.
Bf3 {[%clk 0:03:03.5]} 14... d5 {[%clk 0:02:45]} 15. a4 {[%clk 0:02:56.8]} 15...
a5 {[%clk 0:02:44.3]} 16. g4 {[%clk 0:02:53.2]} 16... Kf8 {[%clk 0:02:42.9]} 17.
Kf1 {[%clk 0:02:50.4]} 17... Kg7 {[%clk 0:02:42.7]} 18. Kg1 {[%clk 0:02:51.1]}
18... c5 {[%clk 0:02:41.6]} 19. Rb1 {[%clk 0:02:50.6]} 19... Bc6 {[%clk
0:02:41.5]} 20. cxd5 {[%clk 0:02:45]} 20... exd5 {[%clk 0:02:37.5]} 21. Nf1
{[%clk 0:02:44.1]} 21... Bd7 {[%clk 0:02:30.9]} 22. Ng3 {[%clk 0:02:42.4]} 22...
Be6 {[%clk 0:02:30.8]} 23. c4 {[%clk 0:02:37.6]} 23... Rc8 {[%clk 0:02:06.2]}
24. cxd5 {[%clk 0:02:35.6]} 24... Nxd5 {[%clk 0:02:05.9]} 25. Bxd5 {[%clk
0:02:27.6]} 25... Qxd5 {[%clk 0:02:06.8]} 26. Nh5+ {[%clk 0:02:17.7]} 26... Kf8
{[%clk 0:02:05.8]} 27. Rh3 {[%clk 0:02:16.1]} 27... cxd4 {[%clk 0:01:58.1]} 28.
exd4 {[%clk 0:02:17]} 28... Rc4 {[%clk 0:01:54]} 29. Rd3 {[%clk 0:02:05.3]}
29... Ke7 {[%clk 0:01:53.9]} 30. Rxb6 {[%clk 0:02:01.2]} 30... Rhc8 {[%clk
0:01:53.5]} 31. Rb1 {[%clk 0:02:01.2]} 31... Rd8 {[%clk 0:01:47.5]} 32. Ng3
{[%clk 0:01:56.1]} 32... Rxd4 {[%clk 0:01:46.3]} 33. Rxd4 {[%clk 0:01:57]} 33...
Qxd4 {[%clk 0:01:47.2]} 34. Qe1 {[%clk 0:01:57.9]} 34... Qxa4 {[%clk 0:01:20.8]}
35. Rb7+ {[%clk 0:01:45.7]} 35... Kf8 {[%clk 0:01:10.8]} 36. Qe5 {[%clk
0:01:33.4]} 36... Qd4 {[%clk 0:01:07.5]} 37. Qxa5 {[%clk 0:01:29.4]} 37... Bxg4
{[%clk 0:01:06.5]} 38. Qa3+ {[%clk 0:01:27.5]} 38... Kg8 {[%clk 0:01:05.7]} 39.
Qe7 {[%clk 0:01:27.5]} 39... Be6 {[%clk 0:01:02.1]} 40. Rb1 {[%clk 0:01:13.1]}
40... Bg4 {[%clk 0:00:48.5]} 41. Ne4 {[%clk 0:01:05.3]} 41... Bf5 {[%clk
0:00:46.4]} 42. Re1 {[%clk 0:00:32.7]} 42... Bxe4 {[%clk 0:00:45.9]} 43. Rxe4
{[%clk 0:00:31.6]} 43... Qd1+ {[%clk 0:00:44.9]} 44. Re1 {[%clk 0:00:30.6]}
44... Qd6 {[%clk 0:00:43.8]} 45. Qe3 {[%clk 0:00:30.7]} 45... Qf6 {[%clk
0:00:43.1]} 46. g3 {[%clk 0:00:29.1]} 46... Kg7 {[%clk 0:00:43.1]} 47. Rc1
{[%clk 0:00:28.5]} 47... Rd6 {[%clk 0:00:43.1]} 48. Kg2 {[%clk 0:00:28.7]} 48...
Re6 {[%clk 0:00:43.2]} 49. Qf3 {[%clk 0:00:29.2]} 49... Qxf3+ {[%clk 0:00:41.5]}
50. Kxf3 {[%clk 0:00:30.1]} 50... Kg6 {[%clk 0:00:42]} 51. Kg2 {[%clk 0:00:31]}
51... h5 {[%clk 0:00:42.2]} 52. Rc8 {[%clk 0:00:31.3]} 52... f6 {[%clk
0:00:42.6]} 53. Rg8+ {[%clk 0:00:31.5]} 53... Kf7 {[%clk 0:00:42.9]} 54. Rh8
{[%clk 0:00:31.6]} 54... Kg6 {[%clk 0:00:43.1]} 55. Rg8+ {[%clk 0:00:32.1]}
55... Kh7 {[%clk 0:00:43.5]} 56. Ra8 {[%clk 0:00:32.5]} 56... Kg7 {[%clk
0:00:43.9]} 57. Ra7+ {[%clk 0:00:32.5]} 57... Kg6 {[%clk 0:00:44.3]} 58. Ra8
{[%clk 0:00:33.4]} 58... Re4 {[%clk 0:00:44.4]} 59. Rg8+ {[%clk 0:00:33.1]}
59... Kf7 {[%clk 0:00:44.4]} 60. Rh8 {[%clk 0:00:33.3]} 60... Kg6 {[%clk
0:00:44.7]} 61. Rg8+ {[%clk 0:00:33.6]} 61... Kh7 {[%clk 0:00:45.1]} 62. Ra8
{[%clk 0:00:33.7]} 62... h4 {[%clk 0:00:45]} 63. gxh4 {[%clk 0:00:34.6]} 63...
Rxh4 {[%clk 0:00:45.9]} 64. Kg3 {[%clk 0:00:35.1]} 64... Kg6 {[%clk 0:00:46]}
65. Rg8+ {[%clk 0:00:33.5]} 65... Kf5 {[%clk 0:00:46.2]} 66. Ra8 {[%clk
0:00:34.4]} 66... Rg4+ {[%clk 0:00:46.6]} 67. Kf3 {[%clk 0:00:35]} 67... Rb4
{[%clk 0:00:47.5]} 68. Ra5+ {[%clk 0:00:33.5]} 68... Kg6 {[%clk 0:00:47.9]} 69.
Kg3 {[%clk 0:00:34]} 69... Rb3+ {[%clk 0:00:48]} 70. Kg2 {[%clk 0:00:34.6]}
70... g4 {[%clk 0:00:47.7]} 71. Ra8 {[%clk 0:00:34.1]} 71... Kg5 {[%clk
0:00:47.3]} 72. Rg8+ {[%clk 0:00:33.5]} 72... Kf4 {[%clk 0:00:47.4]} 73. Ra8
{[%clk 0:00:33.6]} 73... f5 {[%clk 0:00:47.5]} 74. Ra4+ {[%clk 0:00:33.3]} 74...
Kg5 {[%clk 0:00:47.9]} 75. Ra8 {[%clk 0:00:33.9]} 75... Rb2 {[%clk 0:00:48.3]}
76. Rg8+ {[%clk 0:00:31.7]} 76... Kf4 {[%clk 0:00:48.6]} 77. Ra8 {[%clk
0:00:32.6]} 77... Re2 {[%clk 0:00:48.6]} 78. Ra4+ {[%clk 0:00:32.3]} 78... Re4
{[%clk 0:00:48.8]} 79. Ra3 {[%clk 0:00:32.4]} 79... Kg5 {[%clk 0:00:48.8]} 80.
Ra8 {[%clk 0:00:32.3]} 80... Re2 {[%clk 0:00:48.5]} 81. Rg8+ {[%clk 0:00:32.4]}
81... Kf4 {[%clk 0:00:48.6]} 82. Ra8 {[%clk 0:00:33.3]} 82... Kg5 {[%clk
0:00:48.6]} 83. Rg8+ {[%clk 0:00:32.9]} 83... Kf6 {[%clk 0:00:48.9]} 84. Rf8+
{[%clk 0:00:32.8]} 84... Kg6 {[%clk 0:00:49.3]} 85. Rg8+ {[%clk 0:00:33]} 85...
Kf7 {[%clk 0:00:49.6]} 86. Ra8 {[%clk 0:00:33.4]} 86... Kf6 {[%clk 0:00:49.4]}
87. Rf8+ {[%clk 0:00:33.3]} 87... Kg5 {[%clk 0:00:49.5]} 88. Rg8+ {[%clk
0:00:33.8]} 1/2-1/2

[Event "*** Titled Tuesday Blitz"]
[Site "Chess.com"]
[Date "2020.05.05"]
[Round "6"]
[White "yamalchess"]
[Black "guillembaches"]
[Result "1-0"]
[WhiteElo "2556"]
[BlackElo "2421"]
[TimeControl "180+1"]
[EndTime "11:09:03 PDT"]
[Termination "yamalchess won by checkmate"]

1. d4 {[%clk 0:02:55.2]} 1... Nf6 {[%clk 0:02:59.5]} 2. c4 {[%clk 0:02:55.1]}
2... e6 {[%clk 0:02:59.6]} 3. Nc3 {[%clk 0:02:55.2]} 3... Bb4 {[%clk 0:02:59.1]}
4. Nf3 {[%clk 0:02:53.1]} 4... Bxc3+ {[%clk 0:02:53.8]} 5. bxc3 {[%clk
0:02:52.4]} 5... b6 {[%clk 0:02:53.8]} 6. g3 {[%clk 0:02:49.6]} 6... Bb7 {[%clk
0:02:53.4]} 7. Bg2 {[%clk 0:02:49.9]} 7... O-O {[%clk 0:02:49.9]} 8. O-O {[%clk
0:02:49.5]} 8... d6 {[%clk 0:02:48.7]} 9. d5 {[%clk 0:02:17.5]} 9... e5 {[%clk
0:02:37.4]} 10. Nh4 {[%clk 0:02:16.8]} 10... Nbd7 {[%clk 0:02:28.3]} 11. e4
{[%clk 0:02:14.3]} 11... a5 {[%clk 0:02:23.2]} 12. Nf5 {[%clk 0:02:06.8]} 12...
Ba6 {[%clk 0:02:21.7]} 13. Qe2 {[%clk 0:02:02.9]} 13... g6 {[%clk 0:02:13.6]}
14. Nh6+ {[%clk 0:02:00.4]} 14... Kg7 {[%clk 0:02:10.5]} 15. f4 {[%clk
0:02:00.4]} 15... Ng8 {[%clk 0:02:03.8]} 16. Nxg8 {[%clk 0:01:57.9]} 16... Kxg8
{[%clk 0:02:01.8]} 17. f5 {[%clk 0:01:58.1]} 17... f6 {[%clk 0:01:44.4]} 18.
fxg6 {[%clk 0:01:57.2]} 18... hxg6 {[%clk 0:01:44]} 19. Bh3 {[%clk 0:01:57.4]}
19... Kg7 {[%clk 0:01:36]} 20. Be3 {[%clk 0:01:48.4]} 20... Nc5 {[%clk
0:01:31.9]} 21. Bg2 {[%clk 0:01:46.9]} 21... Qd7 {[%clk 0:01:20.7]} 22. Rf2
{[%clk 0:01:46.2]} 22... Qa4 {[%clk 0:01:17.7]} 23. h4 {[%clk 0:01:37.9]} 23...
Qxc4 {[%clk 0:01:13.8]} 24. Qg4 {[%clk 0:01:34.5]} 24... Bc8 {[%clk 0:00:56.5]}
25. Qf3 {[%clk 0:01:28.3]} 25... Bd7 {[%clk 0:00:34.6]} 26. h5 {[%clk
0:01:25.2]} 26... g5 {[%clk 0:00:31.4]} 27. Raf1 {[%clk 0:01:18.1]} 27... g4
{[%clk 0:00:29]} 28. h6+ {[%clk 0:01:06.1]} 28... Kg6 {[%clk 0:00:27.5]} 29. Qd1
{[%clk 0:01:00.7]} 29... Qd3 {[%clk 0:00:22.5]} 30. Qc1 {[%clk 0:00:39.9]} 30...
Rf7 {[%clk 0:00:18.9]} 31. Rd1 {[%clk 0:00:37]} 31... Qc4 {[%clk 0:00:18.4]} 32.
Bf1 {[%clk 0:00:36.3]} 32... Qa4 {[%clk 0:00:17.9]} 33. Bg2 {[%clk 0:00:34]}
33... Raf8 {[%clk 0:00:17.7]} 34. Qb1 {[%clk 0:00:30.3]} 34... Bc8 {[%clk
0:00:16.9]} 35. Rdf1 {[%clk 0:00:29.3]} 35... Ba6 {[%clk 0:00:14.9]} 36. Rd1
{[%clk 0:00:28.3]} 36... Qc4 {[%clk 0:00:14.9]} 37. Bf1 {[%clk 0:00:24.7]} 37...
Qa4 {[%clk 0:00:13]} 38. Bxc5 {[%clk 0:00:23.1]} 38... Bxf1 {[%clk 0:00:11.7]}
39. Bxd6 {[%clk 0:00:22.5]} 39... Bh3 {[%clk 0:00:08.1]} 40. Bxf8 {[%clk
0:00:21.6]} 40... Rxf8 {[%clk 0:00:09]} 41. Re1 {[%clk 0:00:19.6]} 41... Qc4
{[%clk 0:00:08.5]} 42. Qc1 {[%clk 0:00:17.9]} 42... Qd3 {[%clk 0:00:07.5]} 43.
Qe3 {[%clk 0:00:17.3]} 43... Qb5 {[%clk 0:00:07.1]} 44. Qe2 {[%clk 0:00:16.4]}
44... Qd7 {[%clk 0:00:04.9]} 45. Rh2 {[%clk 0:00:16.1]} 45... Rh8 {[%clk
0:00:05.1]} 46. c4 {[%clk 0:00:15.6]} 46... Rxh6 {[%clk 0:00:05.4]} 47. Qf2
{[%clk 0:00:13.3]} 47... Qd6 {[%clk 0:00:05.8]} 48. Qf5+ {[%clk 0:00:13]} 48...
Kg7 {[%clk 0:00:06.2]} 49. Ree2 {[%clk 0:00:12.4]} 49... Qc5+ {[%clk 0:00:05.8]}
50. Ref2 {[%clk 0:00:11.3]} 50... Qxc4 {[%clk 0:00:05.7]} 51. Qd7+ {[%clk
0:00:11]} 51... Kg6 {[%clk 0:00:05]} 52. Qe8+ {[%clk 0:00:09.5]} 52... Kg7
{[%clk 0:00:04.9]} 53. Qe7+ {[%clk 0:00:09.5]} 53... Kg6 {[%clk 0:00:05.3]} 54.
Qe8+ {[%clk 0:00:08.4]} 54... Kg7 {[%clk 0:00:05.8]} 55. Qe7+ {[%clk 0:00:08.5]}
55... Kg6 {[%clk 0:00:06.2]} 56. Rxf6+ {[%clk 0:00:08.4]} 56... Kh5 {[%clk
0:00:05.7]} 57. Qf7+ {[%clk 0:00:07.8]} 57... Kg5 {[%clk 0:00:05.5]} 58. Rf5#
{[%clk 0:00:07.9]} 1-0

[Event "*** Titled Tuesday Blitz"]
[Site "Chess.com"]
[Date "2020.05.05"]
[Round "6"]
[White "agrigo3"]
[Black "Sanyura"]
[Result "0-1"]
[WhiteElo "2320"]
[BlackElo "2484"]
[TimeControl "180+1"]
[EndTime "11:09:07 PDT"]
[Termination "Sanyura won on time"]

1. d4 {[%clk 0:03:00.9]} 1... Nf6 {[%clk 0:02:57.7]} 2. Nf3 {[%clk 0:02:57.6]}
2... g6 {[%clk 0:02:57.5]} 3. c4 {[%clk 0:02:57.4]} 3... d6 {[%clk 0:02:57.2]}
4. Nc3 {[%clk 0:02:57.1]} 4... Bg7 {[%clk 0:02:57.5]} 5. e4 {[%clk 0:02:57.3]}
5... O-O {[%clk 0:02:57.6]} 6. Be2 {[%clk 0:02:57.6]} 6... e5 {[%clk 0:02:46.7]}
7. dxe5 {[%clk 0:02:57.4]} 7... dxe5 {[%clk 0:02:45.5]} 8. Qxd8 {[%clk
0:02:57.9]} 8... Rxd8 {[%clk 0:02:38.9]} 9. Nd5 {[%clk 0:02:52.2]} 9... Nxd5
{[%clk 0:02:37.5]} 10. cxd5 {[%clk 0:02:52.4]} 10... c6 {[%clk 0:02:35.8]} 11.
Bc4 {[%clk 0:02:52.5]} 11... b5 {[%clk 0:02:34.8]} 12. Bb3 {[%clk 0:02:48.2]}
12... h6 {[%clk 0:02:22]} 13. Be3 {[%clk 0:02:40.6]} 13... a5 {[%clk 0:02:19.4]}
14. a3 {[%clk 0:02:33.9]} 14... Bb7 {[%clk 0:02:15.2]} 15. O-O-O {[%clk
0:02:17.1]} 15... cxd5 {[%clk 0:02:07.7]} 16. Bxd5 {[%clk 0:01:39.5]} 16... Nc6
{[%clk 0:02:03.6]} 17. Kb1 {[%clk 0:01:34.2]} 17... b4 {[%clk 0:02:01.4]} 18. a4
{[%clk 0:01:24.1]} 18... Rd7 {[%clk 0:01:54.4]} 19. Nd2 {[%clk 0:01:15.6]} 19...
Nd4 {[%clk 0:01:52.3]} 20. Bxb7 {[%clk 0:01:14.1]} 20... Rxb7 {[%clk 0:01:53.2]}
21. Nc4 {[%clk 0:01:14.2]} 21... Rc7 {[%clk 0:01:49.1]} 22. b3 {[%clk
0:00:52.3]} 22... Nxb3 {[%clk 0:01:44.3]} 23. Nb6 {[%clk 0:00:42]} 23... Rb8
{[%clk 0:01:43.6]} 24. Nd5 {[%clk 0:00:30.5]} 24... Rcb7 {[%clk 0:01:43.7]} 25.
Kb2 {[%clk 0:00:25.3]} 25... Nd4 {[%clk 0:01:42.9]} 26. Bxd4 {[%clk 0:00:25.2]}
26... exd4 {[%clk 0:01:42.9]} 27. Rd3 {[%clk 0:00:25.6]} 27... f5 {[%clk
0:01:42.5]} 28. f3 {[%clk 0:00:25]} 28... Re8 {[%clk 0:01:41.2]} 29. Re1 {[%clk
0:00:23.6]} 29... Rd7 {[%clk 0:01:40]} 30. Nb6 {[%clk 0:00:18.6]} 30... Rc7
{[%clk 0:01:39.8]} 31. Nd5 {[%clk 0:00:18.1]} 31... Rd7 {[%clk 0:01:38.5]} 32.
Nb6 {[%clk 0:00:17.9]} 32... Rd6 {[%clk 0:01:37.8]} 33. Nc4 {[%clk 0:00:17.3]}
33... Rc6 {[%clk 0:01:34]} 34. Nxa5 {[%clk 0:00:17]} 34... Ra6 {[%clk
0:01:33.8]} 35. Nc4 {[%clk 0:00:16.1]} 35... Rxa4 {[%clk 0:01:33.6]} 36. e5
{[%clk 0:00:14.8]} 36... b3 {[%clk 0:01:20.2]} 37. Kxb3 {[%clk 0:00:13.8]} 37...
Ra7 {[%clk 0:01:18.7]} 38. Nd6 {[%clk 0:00:13.7]} 38... Rb8+ {[%clk 0:01:17]}
39. Kc4 {[%clk 0:00:13.7]} 39... Ra4+ {[%clk 0:01:16.4]} 40. Kd5 {[%clk
0:00:13.6]} 40... Rbb4 {[%clk 0:01:13.1]} 41. f4 {[%clk 0:00:10.4]} 41... Ra5+
{[%clk 0:01:08]} 42. Ke6 {[%clk 0:00:09.8]} 42... Bf8 {[%clk 0:01:08.2]} 43. Rc1
{[%clk 0:00:09.2]} 43... Ra8 {[%clk 0:01:02.3]} 44. Rc7 {[%clk 0:00:08.5]} 44...
Rd8 {[%clk 0:00:52.4]} 45. Rd7 {[%clk 0:00:07.3]} 45... Rdb8 {[%clk 0:00:49.2]}
46. Rc7 {[%clk 0:00:07]} 46... Ra4 {[%clk 0:00:40.6]} 47. Rc8 {[%clk 0:00:06.9]}
47... Rb6 {[%clk 0:00:37.3]} 48. Re8 {[%clk 0:00:05.2]} 48... Kg7 {[%clk
0:00:30.8]} 49. g3 {[%clk 0:00:05.4]} 49... Rb1 {[%clk 0:00:23.1]} 50. h4 {[%clk
0:00:04.8]} 50... Rc1 {[%clk 0:00:17.3]} 51. Rc8 {[%clk 0:00:04.3]} 51... Rb1
{[%clk 0:00:15.5]} 52. Rc7+ {[%clk 0:00:04.5]} 52... Kg8 {[%clk 0:00:15.9]} 53.
Ne8 {[%clk 0:00:03.5]} 53... Rb6+ {[%clk 0:00:15.3]} 54. Nd6 {[%clk 0:00:03.4]}
54... Rab4 {[%clk 0:00:13.6]} 55. Rc8 {[%clk 0:00:02.2]} 55... Ra4 {[%clk
0:00:13.6]} 56. Rc7 {[%clk 0:00:02.2]} 56... Rba6 {[%clk 0:00:13.6]} 57. Rc8
{[%clk 0:00:02.2]} 57... Ra7 {[%clk 0:00:13.6]} 58. Rc6 {[%clk 0:00:02]} 58...
R4a5 {[%clk 0:00:13]} 59. Rc8 {[%clk 0:00:01.9]} 59... Re7+ {[%clk 0:00:12.8]}
60. Kf6 {[%clk 0:00:01.8]} 60... Ra6 {[%clk 0:00:11.2]} 61. Kxg6 {[%clk
0:00:01.5]} 61... Rg7+ {[%clk 0:00:09.4]} 62. Kh5 {[%clk 0:00:01.7]} 62... Kh7
{[%clk 0:00:03.7]} 63. Nxf5 {[%clk 0:00:01.9]} 63... Rf7 {[%clk 0:00:02.8]} 64.
Nd6 {[%clk 0:00:01.5]} 64... Bxd6 {[%clk 0:00:03.3]} 65. exd6 {[%clk 0:00:01.7]}
65... Rg7 {[%clk 0:00:03.7]} 66. f5 {[%clk 0:00:01.1]} 66... Ra5 {[%clk
0:00:03.8]} 0-1